Cogmind - Beta 17.1 --- EXPLORER MODE // 2026.08.31 @ 01:11:40 Player: Wolfechu Result: Self-destructed Performance ------------- Evolutions (1) 500 Regions Visited (4) 800 Robots Destroyed (26) 130 Value Destroyed (611) 611 Prototype IDs (0) 0 Alien Tech Used (0) 0 Bonus (0) 0 TOTAL SCORE: 2041 Bonus ------- None Cogmind --------- Core Integrity 309/400 Matter 450/450 Energy 125/125 System Corruption 0% Temperature Cool (0) Movement Walking (750) Ox9 Location -9/Storage Parts ------- > --- POWER (1) -------- Light Ion Engine > --- PROPULSION (3) --- Aluminum Leg > --- UTILITY (4) ------ Huge Storage Unit Large Matter Pod Terrain Scanner Targeting Computer > --- WEAPON (2) ------- Medium Laser Beam Cannon > --- INVENTORY (25) --- Ion Engine Light Ion Engine Light Ion Engine Light Ion Engine Cooled Ion Engine Light Nuclear Core Improved Heat Sink Terrain Scan Processor Small Laser Datajack Mining Laser Mining Laser Makeshift Sword Peak State ------------ > --- POWER ------------ Light Ion Engine > --- PROPULSION ------- Aluminum Leg Aluminum Leg Aluminum Leg > --- UTILITY ---------- Huge Storage Unit Large Matter Pod Terrain Scanner Targeting Computer > --- WEAPON ----------- Medium Laser Beam Cannon > --- INVENTORY -------- Ion Engine Light Ion Engine Light Ion Engine Light Ion Engine Light Nuclear Core Improved Heat Sink Terrain Scan Processor Small Laser Datajack Mining Laser Mining Laser Makeshift Sword [Rating: 12] Favorites ----------- Power Light Ion Engine Engine Light Ion Engine Propulsion Aluminum Leg Leg Aluminum Leg Utility Targeting Computer Device Terrain Scanner Storage Large Matter Pod Processor Targeting Computer Weapon Medium Laser Energy Gun Medium Laser Energy Cannon Beam Cannon Ballistic Gun Assault Rifle Build | -11 -10 -10 -9 -9 ------- Run | Yrd Mat Min Mat Sto Slots Evolved 3 | . 1 . 2 . Power . | . . . . . Propulsion 1 | . . . 1 . Utility 2 | . 1 . 1 . Weapon . | . . . . . Parts Attached 13 | 7 2 1 3 . Power 1 | 1 . . . . Engine 1 | 1 . . . . Core . | . . . . . Reactor . | . . . . . Propulsion 3 | 2 . . 1 . Treads . | . . . . . Leg 3 | 2 . . 1 . Wheel . | . . . . . Hover . | . . . . . Flight . | . . . . . Utility 6 | 2 2 . 2 . Device 1 | . . . 1 . Storage 4 | 1 2 . 1 . Processor 1 | 1 . . . . Hackware . | . . . . . Protection . | . . . . . Artifact . | . . . . . Weapon 3 | 2 . 1 . . Energy Gun 1 | 1 . . . . Energy Cannon 1 | . . 1 . . Ballistic Gun 1 | 1 . . . . Ballistic Cannon . | . . . . . Launcher . | . . . . . Special Weapon . | . . . . . Impact Weapon . | . . . . . Slashing Weapon . | . . . . . Piercing Weapon . | . . . . . Special Melee Weapon . | . . . . . Unidentified Prototypes . | . . . . . Parts Lost 2 | . . . . 2 Power . | . . . . . Propulsion 2 | . . . . 2 Utility . | . . . . . Weapon . | . . . . . Highest Loss Streak 2 | . . . . 2 To Critical Strikes . | . . . . . Average Backups 9 | 4 6 9 10 12 Power 2 | 1 1 2 3 5 Propulsion 1 | . . 1 . . Utility 2 | . 2 3 2 2 Weapon 2 | 2 2 2 3 4 Tool/Special . | . . . . . Unused Backups 21 | . 5 1 3 12 Power 6 | . 1 . . 5 Propulsion 2 | . . . 2 . Utility 7 | . 3 1 1 2 Weapon 5 | . 1 . . 4 Tool/Special 1 | . . . . 1 Average Slot Usage (%) 99 | . 96 100 99 98 Engine 11 | . 12 12 10 10 Leg 26 | . 25 25 30 28 Device 3 | . . . 9 10 Storage 22 | . 21 25 20 20 Processor 11 | . 12 12 10 10 Energy Gun 11 | . 12 12 10 10 Energy Cannon 8 | . . 10 10 10 Ballistic Gun 2 | . 12 1 . . Peak Build Rating 12 | 7 9 9 12 12 Average Rating 9 | 2 8 9 11 11 On Entrance 7 | . 7 9 9 12 Avg Prop Armor Cover (%) . | . . . . . Naked Turns . | . . . . . Heaviest Build 92 | 17 20 21 92 92 Greatest Support 30 | 20 20 20 30 30 Greatest Overweight (x) 4 | 3 . 1 3 4 Average Overweight (x) . | 1 . . . 3 Largest Inventory Capacity 25 | 10 10 10 25 25 Average Capacity 12 | 9 10 10 17 25 Most Carried 13 | 9 10 10 12 13 Average Carried 9 | 4 6 9 10 12 Final Capacity 25 | 10 10 10 25 25 Final Carried 13 | 3 9 10 12 13 Class Distribution -------------------- 100% | Hacker-Mutant Dominant Class ---------------- Hacker-Mutant | -10/Materials Hacker-Mutant | -10/Mines Hacker-Mutant | -9/Materials Hacker-Mutant | -9/Storage Resources | -11 -10 -10 -9 -9 ----------- Run | Yrd Mat Min Mat Sto Matter Collected 527 | 194 227 56 50 . Remotely . | . . . . . Salvage Created 788 | . 58 146 562 22 Parts 66 | . 6 7 48 5 Haulers Intercepted . | . . . . . Recyclers Shooed . | . . . . . Parts Field Recycled . | . . . . . Retrieved Matter . | . . . . . Parts Self-Destructed . | . . . . . Prevented . | . . . . . Parts Restored . | . . . . . Kills | -11 -10 -10 -9 -9 ------- Run | Yrd Mat Min Mat Sto Combat Hostiles Destroyed 19 | . . 6 11 2 Guns 8 | . . 5 2 1 Cannons 10 | . . 1 8 1 Classes Destroyed 8 | . 2 2 4 . Worker 1 | . 1 . . . Builder 1 | . . . 1 . Tunneler 1 | . . . 1 . Operator 1 | . . . 1 . Watcher 3 | . 1 . 2 . Swarmer 8 | . . 4 2 2 Grunt 7 | . . 2 5 . Sentry 4 | . . . 4 . Best Kill Streak 4 | . 1 2 4 2 Combat Bots Only 3 | . . 2 3 2 Max Kills in Single Turn 1 | . 1 1 1 1 Gunslinging . | . . . . . Exploded . | . . . . . Melee . | . . . . . Uniques/NPCs Destroyed . | . . . . . Combat | -11 -10 -10 -9 -9 -------- Run | Yrd Mat Min Mat Sto Hostile Shots Fired 137 | . . 26 39 72 Missed 36 | . . 3 18 15 Hits 101 | . . 23 21 57 Projectile 101 | . . 23 21 57 Critical Strikes 2 | . . . 2 . Damage Taken 572 | . . 132 175 265 Core 109 | . . 18 53 38 Absorbed by Shields . | . . . . . Ignored by Resistances 399 | . . 90 111 198 Core Remaining (%) 96 | 100 . 92 . . Volleys Fired 51 | . 3 11 31 6 Largest 2 | . 2 2 2 2 Hottest 110 | . 70 110 110 110 Shots Fired 96 | . 6 22 58 10 Gun 54 | . 6 17 27 4 Cannon 42 | . . 5 31 6 Launcher . | . . . . . Special . | . . . . . Kinetic 9 | . 3 6 . . Thermal 87 | . 3 16 58 10 Explosive . | . . . . . Electromagnetic . | . . . . . Robot Hit Streak 42 | . 2 19 42 3 Robot Miss Streak 3 | . 2 . 1 3 Penetration Max . | . . . . . Secondary Targets . | . . . . . Shots Hit Robots 78 | . 2 19 52 5 Core Hits 35 | . 2 8 23 2 Critical Kills . | . . . . . Critical Parts Destroyed . | . . . . . Critical Strikes 4 | . . 1 2 1 Burn 4 | . . 1 2 1 Melee Attacks . | . . . . . Impact . | . . . . . Slashing . | . . . . . Piercing . | . . . . . Sneak Attacks . | . . . . . Combat Hostiles . | . . . . . Follow-up Attacks . | . . . . . Damage Inflicted 1149 | . 25 249 780 95 Guns 588 | . 25 214 324 25 Cannons 561 | . . 35 456 70 Explosions . | . . . . . Melee . | . . . . . Ramming . | . . . . . Kinetic 79 | . . 79 . . Thermal 1070 | . 25 170 780 95 Explosive . | . . . . . Electromagnetic . | . . . . . Impact . | . . . . . Slashing . | . . . . . Piercing . | . . . . . Highest Corruption . | . . . . . Average Corruption . | . . . . . Corruption Purged . | . . . . . Corruption Blocked . | . . . . . Overload Shots . | . . . . . Overflow Damage . | . . . . . Projectiles . | . . . . . Explosions . | . . . . . Melee . | . . . . . Knockbacks . | . . . . . Impact . | . . . . . Kinetic . | . . . . . Secondary . | . . . . . Self-Inflicted Damage . | . . . . . Shots . | . . . . . Rammed . | . . . . . Targets Rammed . | . . . . . Kicked . | . . . . . Crushed . | . . . . . Highest Temperature 477 | . 18 144 477 102 Average Temperature 93 | . 9 61 118 49 Received Heat Transfer 273 | . . 69 150 54 Effects 1 | . . . 1 . Shutdowns 1 | . . . 1 . Siege Activations . | . . . . . Martial Activations . | . . . . . Shielding Activations . | . . . . . Robots Disrupted . | . . . . . Combat Hostiles . | . . . . . Robots Corrupted . | . . . . . Combat Hostiles . | . . . . . Parts Fried . | . . . . . Impact Corruptions . | . . . . . Robots Melted 1 | . . . 1 . Combat Hostiles 1 | . . . 1 . Parts Melted 8 | . . 1 6 1 Heat Transferred 2997 | . 74 555 2072 296 Parts Sabotaged . | . . . . . Parts Stolen . | . . . . . Parts Stripped . | . . . . . Power Chain Reactions . | . . . . . Alert | -11 -10 -10 -9 -9 ------- Run | Yrd Mat Min Mat Sto Maximum Alert Level . | . . . . . Low Security (%) 100 | 100 100 100 100 100 Level 1 . | . . . . . Level 2 . | . . . . . Level 3 . | . . . . . Level 4 . | . . . . . Level 5 . | . . . . . High Security . | . . . . . Max Security . | . . . . . Peak Influence 132 | . 7 50 132 39 Initial 35 | . . . . 35 Average 11 | . . 4 40 12 Influence Increases 612 | . 12 150 394 56 Destroy 0b10 Robot/C 380 | . . 120 220 40 Destroy 0b10 Robot/NC 35 | . 10 . 25 . Destroy Leader 116 | . 2 30 74 10 Successful Hack 17 | . . . 15 2 Disable Machine 4 | . . . . 4 Lose Combat Pursuer 60 | . . . 60 . Influence Decreases 608 | . 12 150 277 169 Entered New Map 82 | . . . . 82 Time Decay 506 | . 12 150 277 67 Lost Part 20 | . . . . 20 Squads Dispatched 1 | . . . 1 . Investigation 1 | . . . 1 . Extermination . | . . . . . Reinforcement . | . . . . . Assault . | . . . . . Garrison . | . . . . . Intercept . | . . . . . Searches Triggered . | . . . . . Construction Impeded . | . . . . . Haulers Reinforced . | . . . . . Active Scanning Responses . | . . . . . Cargo Convoy Interrupts . | . . . . . Stealth | -11 -10 -10 -9 -9 --------- Run | Yrd Mat Min Mat Sto Distress Signals 3 | . 1 . 2 . Communications Jammed . | . . . . . Distress Signals . | . . . . . Times Spotted 33 | . 2 6 17 8 Peak Tracking Total 6 | . 1 2 5 6 Tactical Retreats 2 | . . . 2 . Traps | -11 -10 -10 -9 -9 ------- Run | Yrd Mat Min Mat Sto Traps Triggered . | . . . . . Indirectly . | . . . . . Trap Hack Attempts . | . . . . . Triggered . | . . . . . Disarmed . | . . . . . Reprogrammed . | . . . . . Reused . | . . . . . Traps Extracted . | . . . . . Installed . | . . . . . Triggered . | . . . . . Machines | -11 -10 -10 -9 -9 ---------- Run | Yrd Mat Min Mat Sto Machines Disabled 1 | . . . . 1 Max in Single Turn 1 | . . . . 1 Machines Repaired . | . . . . . Machines Dismantled . | . . . . . Machines Sabotaged . | . . . . . Overloaded Fab Kills . | . . . . . Hacking | -11 -10 -10 -9 -9 --------- Run | Yrd Mat Min Mat Sto Machines Accessed 7 | . 2 . 4 1 Terminals 7 | . 2 . 4 1 Fabricators . | . . . . . Repair Stations . | . . . . . Recycling Units . | . . . . . Scanalyzers . | . . . . . Garrison Access . | . . . . . Total Hacks 19 | . 5 . 13 1 Successful 11 | . 2 . 8 1 Failed 8 | . 3 . 5 . Catastrophic . | . . . . . Database Lockouts . | . . . . . Manual 2 | . 2 . . . Terminals 19 | . 5 . 13 1 Fabricators . | . . . . . Repair Stations . | . . . . . Recycling Units . | . . . . . Scanalyzers . | . . . . . Garrison Access . | . . . . . Terminal Hacks 11 | . 2 . 8 1 Record 3 | . . . 3 . Robot Analysis 2 | . 1 . 1 . Open Door 1 | . . . . 1 Emergency Access Points 1 | . . . 1 . Locate Traps 2 | . . . 2 . Zone Layout 2 | . 1 . 1 . Fabricator Hacks . | . . . . . Repair Station Hacks . | . . . . . Recycling Unit Hacks . | . . . . . Scanalyzer . | . . . . . Garrison Access Hacks . | . . . . . Unauthorized Hacks . | . . . . . Terminals . | . . . . . Fabricators . | . . . . . Repair Stations . | . . . . . Recycling Units . | . . . . . Scanalyzers . | . . . . . Garrison Access . | . . . . . Data Cores Recovered 1 | . . . 1 . Used . | . . . . . Hacking Detections 4 | . 1 . 3 . Full Trace Events 1 | . . . 1 . Feedback Events . | . . . . . Feedback Blocked . | . . . . . Robot Schematics Acquired . | . . . . . Robots Built . | . . . . . Authchips . | . . . . . Time . | . . . . . Total Robot Build Rating . | . . . . . Part Schematics Acquired . | . . . . . Parts Built . | . . . . . Authchips . | . . . . . Time . | . . . . . Total Part Build Rating . | . . . . . Part Studies Acquired . | . . . . . Parts Repaired . | . . . . . Time . | . . . . . Parts Recycled . | . . . . . Recycled Matter . | . . . . . Retrieved Matter . | . . . . . Retrieved Components . | . . . . . Parts Scanalyzed . | . . . . . Part Schematics Acquired . | . . . . . Parts Damaged . | . . . . . Bothacking | -11 -10 -10 -9 -9 ------------ Run | Yrd Mat Min Mat Sto Used RIF Installer . | . . . . . Robots Hacked . | . . . . . Non-combat . | . . . . . Combat . | . . . . . Robot Hacks Applied . | . . . . . Relay Couplers Released . | . . . . . Fabnet Peak Effective % . | . . . . . Robots Rewired . | . . . . . Allies Hacked . | . . . . . Hacks Repelled . | . . . . . Allies | -11 -10 -10 -9 -9 -------- Run | Yrd Mat Min Mat Sto Total Allies . | . . . . . Largest Group . | . . . . . Highest-Rated Group . | . . . . . Highest-Rated Ally . | . . . . . Total Orders . | . . . . . Ally Attacks . | . . . . . Total Damage . | . . . . . Kills . | . . . . . Allies Corrupted . | . . . . . Allies Melted . | . . . . . Intel | -11 -10 -10 -9 -9 ------- Run | Yrd Mat Min Mat Sto Active Infowar (turns) 627 | . . . 451 176 Terrain 627 | . . . 451 176 Robot Analysis Total 2 | . 1 . 1 . Derelict Logs Recovered 1 | . . 1 . . Drone Launches . | . . . . . Drone Recoveries . | . . . . . Exploration | -11 -10 -10 -9 -9 ------------- Run | Yrd Mat Min Mat Sto Turns Passed 2141 | 87 308 1118 452 176 Spaces Moved 1089 | 43 231 579 190 46 Core 26 | 26 . . . . Treads . | . . . . . Legs 1063 | 17 231 579 190 46 Wheels . | . . . . . Hover . | . . . . . Flight . | . . . . . Fastest Speed 50 | 50 120 120 120 330 Average Speed 173 | 164 120 180 181 331 Slowest Speed 400 | 200 120 190 330 400 Overloaded Moves . | . . . . . Propulsion Burnouts . | . . . . . Robots Hopped . | . . . . . Potential Cave-ins . | . . . . . Cave-ins Triggered . | . . . . . Exploration Rate (%) 38 | 5 53 97 23 13 Regions Visited 4 Branch Regions 2 Pre-discovered Areas . | . . . . . Known Exits Taken 4 | 1 1 1 1 . Unknown Exits Taken . | . . . . . Scrap Searched 2 | . . 2 . . Spaces Dug . | . . . . . Terrain Destroyed . | . . . . . Melee . | . . . . . Projectile . | . . . . . AOE . | . . . . . Terrain Rammed . | . . . . . Walls Destroyed . | . . . . . Machines Disabled . | . . . . . Actions | -11 -10 -10 -9 -9 --------- Run | Yrd Mat Min Mat Sto Total 1252 | 59 260 630 244 59 Wait 53 | . 6 35 6 6 Move 1085 | 42 230 578 189 46 Hop . | . . . . . Pick Up 36 | 10 13 3 9 1 Fast Attach . | . . . . . Attach 14 | 7 2 1 4 . Detach . | . . . . . Swap . | . . . . . Drop 13 | . 6 2 5 . Fire 51 | . 3 11 31 6 Melee . | . . . . . Ram . | . . . . . Kick . | . . . . . Crush . | . . . . . Escape Stasis . | . . . . . Rewire . | . . . . . Trap . | . . . . . Miscellaneous . | . . . . . Route ------- -11/Scrapyard -10/Materials -10/Mines (discovered 2 exits: *Mat x2) -9/Materials -9/Storage History --------- Turn | Location | Event 37 | -11/Scrapyard | Identified exit to Materials 37 | -11/Scrapyard | Discovered exit to Materials (range 15) 88 | -11/Scrapyard | Entered Materials 88 | -10/Materials | Evolved 1 slot: Utility x1 89 | -10/Materials | Met a group of wandering Federalists 306 | -10/Materials | Build established: Hacker-Mutant 387 | -10/Materials | Identified exit to Mines 387 | -10/Materials | Discovered exit to Mines (range 8) 396 | -10/Materials | Entered Mines 543 | -10/Mines | Identified exit to Materials 698 | -10/Mines | Discovered exit to Materials (range 6) 978 | -10/Mines | A weapon hastily lodged in a ceiling crevice suddenly fell to the ground 1514 | -10/Mines | Entered Materials 1514 | -9/Materials | Evolved 2 slots: Propulsion x1, Utility x1 1889 | -9/Materials | Identified exit to Storage 1889 | -9/Materials | Discovered exit to Storage (range 13) 1966 | -9/Materials | Entered Storage 2142 | -9/Storage | Self-destructed Last Messages --------------- 02101_ Terminal disabled. 02104_ Flight Unit melted. 02104_ S-10 Pest destroyed. 02115_ K-01 Serf cleans the Recycling Unit. 02119_ K-01 Serf collects debris. 02124_ R-06 Scavenger collects Flight Unit. 02125_ K-01 Serf collects debris. 02126_ G-34 Mercenary suffers critical hit (Burn). 02128_ R-06 Scavenger collects Lgt. Ion Engine. 02129_ G-34 Mercenary heat short circuits Aluminum Leg. 02129_ K-01 Serf collects debris. 02132_ Aluminum Leg destroyed. 02133_ K-01 Serf collects debris. 02133_ R-06 Scavenger collects Flight Unit. 02136_ Aluminum Leg destroyed. 02136_ K-01 Serf collects debris. 02138_ R-06 Scavenger collects Lgt. Ion Engine. 02141_ K-01 Serf collects debris. Map ----- +----------------------------------------------------+ | | | | | | | | | | | | | | | | | | | | | | | | | | | | | | | ??????###############??#??#??###????????????? | | ??????# #? ????? ?????????????? | | ?????## """"" """"" #?????? ?????????????? | | ??????# """"" """"" #????? ???????????????? | | ???##?# """"" """"" #???? ????????????????? | | ???#??# #??? ?????????????????? | | ?#???## # ? ??????????????????? | | ??????#######+#########k############????????? | | ???#???# ^ ???????? | | ???????# ss s ????????? | | ?????#?# @s " % r*?????????? | | ??????#######+########g "T r###???????????? | | ?????#?#??## #?#?"" "" r#?????????????? | | ?#????????#T #?#"G ""????????????? | | ??????#??### ##?#""" Y"????????????? | | ??????#??# !#?#### "?????????????? | | ?????????#* !#????# ##????????????? | | ????#????#** ***#????# #?????????????? | | ?????????#** ***#????# ????????????? | | ?????????########????# "" ???????????? | | ?????????????????#??#? """" ??????????? | | ????????????? ???????? """" ??????????? | | ?????#??????????? ??? ""???? ??????????? | | ??????????????? ?????? "????? ????????????? | | ??????#??????????????? "???????????????????? | | ?????????????????????? ????????????????????? | | ?????????????????????? ????????????????????? | | ????????????????????????????????????????????? | | ????????????????????????????????????????????? | | ????????????????????????????????????????????? | | ????????????????????????????????????????????? | | ????????????????????????????????????????????? | | ????????????????????????????????????????????? | | ????????????????????????????????????????????? | | ????????????????????????????????????????????? | +----------------------------------------------------+ Best States ------------- Heat Dissipation 28 Energy Generation 10 Energy Capacity 125 Matter Stores 450 Matter Capacity 450 Sight Range 16 Terrain Scan Range 14 Terrain Scan Density 10 Resistance: KI 35 Resistance: TH 35 Resistance: EX 35 Resistance: EM 35 Resistance: I 35 Resistance: S 35 Resistance: P 35 Evasion (%) 55 Targeting Accuracy 5 Offensive Hacking 20 Item Schematics ----------------- None Robot Schematics ------------------ None Fabricated ------------ Nothing Repaired ---------- Nothing Studied --------- None Alien Tech Used ----------------- None Achievements -------------- None Challenges ------------ None Game ------ Seed DisassembledWarlordMindspike Manual? 0 Play Time 00:15:00 Cumulative 7.5 hours Start 2026.08.31 @ 00:57:08 End 2026.08.31 @ 01:11:40 Sessions 1 Manual Loads 0 Difficulty Explorer Special Mode None Game No. 25 Rogue 6 Adventurer 0 Explorer 19 Win Type - Total 0 Types 0/0/0/0/0/0/0/0/0/0 Lore% 9 Gallery% 14 Achievement% 12 Wizard Run 0 Options --------- Layout 1 ASCII 0 Keyboard 0 Movement Numpad Keybinds 0 Fullscreen 1 Font 24/Smallcaps Map View 50x35 Zoom Use 0% Tactical HUD 1 Map Filters NONE Filters NONE Steam 1 RUN: d16897db-5e62-42bd-8bb7-a86f3adc7213